{"text_format":"1","workbook":"xlsx","n_sheets":4,"sheets":["ΕΝΤΥΠΟ A1-17 Α δοση ","ΕΝΤΥΠΟ A2-17 Α ΔΟΣΗ","ΕΝΤΥΠΟ A3-17 Α ΔΟΣΗ","ΕΝΤΥΠΟ Α7-17 Α ΔΟΣΗ "],"not_rendered":{"charts":0,"images":0,"macros":0,"external_links":0,"defined_names":3,"comments":0,"pivot_tables":0},"unopened":[],"bounds":{"document_bytes":16777216,"sheet_cells":100000,"rows_first":2000,"rows_last":500,"rows_between":2000,"halvings":0,"cell_chars":16384,"cell_head_chars":4096},"cells_cut":0,"cells_raw":0,"read":"whole","date_system":"1900"}

{"sheet":"ΕΝΤΥΠΟ A1-17 Α δοση ","index":0,"n_rows":30,"n_cols":6,"rows_kept":30,"cut":false,"hidden":false,"merged":[[7,2,7,4],[7,6,7,7],[3,2,3,7],[4,2,4,4],[4,6,4,7],[5,2,5,4],[5,6,5,7],[6,2,6,4],[6,6,6,7],[20,1,20,8],[18,1,18,8],[16,1,16,8],[17,1,17,8],[8,1,8,2],[9,1,9,7],[10,1,10,8],[11,1,11,7],[13,1,13,7],[14,1,14,7],[29,1,29,8],[21,1,21,8],[23,1,23,8],[25,1,25,8],[26,1,26,8],[27,1,27,8],[28,1,28,8]]}
[null," ΠΡΟΓΡΑΜΜΑ ΒΟΗΘΕΙΑ ΣΤΟ ΣΠΙΤΙ  2017/ΕΝΤΥΠΟ Α1-17/  Α΄ ΔΟΣΗ"]
[]
[]
[null,"ΕΠΩΝΥΜ.ΦΟΡΕΑ"]
[null,"ΠΕΡΙΦΕΡΕΙΑ",null,null,null,"ΝΟΜΟΣ"]
[null,"ΔΙΕΥΘΥΝΣΗ",null,null,null,"ΤΚ"]
[null,"Ε-MAIL ΦΟΡΕΑ",null,null,null,"ΤΗΛΕΦ."]
[null,"Ε-MAIL ΔΗΜΟΥ",null,null,null,"ΤΗΛΕΦ."]
[null,"ΥΠΕΥΘ.ΕΠΙΚΟΙΝΩΝΙΑΣ"]
[null,"Προς την"]
[null,"ΕΛΛΗΝΙΚΗ ΕΤΑΙΡΕΙΑ ΤΟΠΙΚΗΣ ΑΝΑΠΤΥΞΗΣ ΚΑΙ ΑΥΤΟΔΙΟΙΚΗΣΗΣ Α.Ε. "]
[null,"Μυλλέρου 73-77, 104 36 Αθήνα   τηλεφ.213-1320.600"]
[]
[null,"ΒΕΒΑΙΩΣΗ  ΠΑΡΕΧΟΜΕΝΩΝ ΥΠΗΡΕΣΙΩΝ"]
[null,"μηνός Ιανουαρίου 2017"]
[]
[null,"Ως νόμιμος εκπρόσωπος του φορέα βεβαιώνω ότι ο φορέας μας, στο πλαίσιο του προγράμματος \"ΒΟΗΘΕΙΑ ΣΤΟ ΣΠΙΤΙ\", παρείχε κατά την περίοδο 1/1/2017 – 31/1/2017,  όλες τις υπηρεσίες που όφειλε στους εξυπηρετούμενους, σύμφωνα με τις υποχρεώσεις που απορρέουν από την υλοποίηση του προγράμματος και θα εξακολουθήσει να τις παρέχει μέχρι την 31η Δεκεμβρίου 2017. Όλοι οι εξυπηρετούμενοι και οι εργαζομενοι που παραθέτουμε αφορούν ΜΟΝΟΝ το Πρόγραμμα «Βοήθεια στο Σπίτι», και δεν χρηματοδοτούνται από άλλη πηγή."]
[null,"Πιο συγκεκριμένα ο φορέας μας, για το παραπάνω χρονικό διάστημα, παρείχε υπηρεσίες σε (αριθμός) …………………...…………………… εξυπηρετούμενους , "]
[null,"από τις …. (ΑΡΙΘΜΟΣ) δομές του φορέα μας.  "]
[]
[null,"Η βεβαίωση εκδίδεται για την σχετική  χρηματοδότηση του προγράμματος ΒΟΗΘΕΙΑ ΣΤΟ ΣΠΙΤΙ 2017 από  το Υπουργείο Εργασίας Κοινωνικής Ασφάλισης & Πρόνοιας, το Υπουργείο Εσωτερικών, και το ΕΦΚΑ για την περίοδο 1/01/2017 - 31/12/2017."]
[null,"Έλαβα γνώση των όρων της συμμετοχής μας στο πρόγραμμα, τους οποίους αποδέχομαι πλήρως."]
[]
[null,"ΗΜΕΡΟΜΗΝΙΑ ………………………….."]
[]
[null,"Ο  νόμιμος εκπρόσωπος του φορέα"]
[]
[]
[]
[null,"Ονοματεπώνυμο, υπογραφή και σφραγίδα"]

{"sheet":"ΕΝΤΥΠΟ A2-17 Α ΔΟΣΗ","index":1,"n_rows":26,"n_cols":12,"rows_kept":26,"cut":false,"hidden":false,"merged":[[4,3,4,11],[5,3,5,7],[5,10,5,11],[8,0,8,11]]}
[]
[null," ΠΡΟΓΡΑΜΜΑ ΒΟΗΘΕΙΑ ΣΤΟ ΣΠΙΤΙ 2017/ ΕΝΤΥΠΟ Α2-17 / Α΄ΔΟΣΗ"]
[null,null,null,"ΑΝΑΛΥΤΙΚΑ ΜΗΝΙΑΙΑ ΜΙΣΘΟΔΟΤΙΚΑ ΣΤΟΙΧΕΙΑ ΦΟΡΕΑ"]
[]
[null,"ΕΠΩΝΥΜ.ΦΟΡΕΑ"]
[null,"ΠΕΡΙΦΕΡΕΙΑ",null,null,null,null,null,null,"ΝΟΜΟΣ"]
[null,"Υπεύθυνος επικοινωνίας",null,null,null,null,null,null,"τηλεφ."]
[]
["ΜΗΝΙΑΙΑ  ΠΡΟΒΛΕΨΗ ΜΕ ΒΑΣΗ ΤΟΝ ΜΗΝΑ ΙΑΝΟΥΑΡΙΟ 2017*"]
["a/a","ΟΝΟΜΑΤΕΠΩΝΥΜΟ ΕΡΓΑΖΟΜΕΝΟΥ","ΑΦΜ","ΕΙΔΙΚΟΤ.","ΣΧΕΣΗ\nΕΡΓΑΣΙΑΣ**","ΠΛΗΡΩΤΕΟ","ΦΜΥ","ΑΣΦ. ΕΙΣΦΟΡ.\nΕΡΓΑΖΟΜ","ΑΣΦΑΛ. ΕΙΣΦΟΡ.\nΕΡΓΟΔΟΤ.","ΣΥΝΟΛΟ ΑΣΦΑΛΙΣΤ.\nΕΙΣΦΟΡΩΝ","ΦΟΡΟΣ ΑΛΛΗΛΕΓΓΥΗΣ","ΣΥΝΟΛΑ σε €"]
[1,null,null,null,null,1000,25,23,40,{"$f":"SUM(H11:I11)","v":63},null,{"$f":"SUM(F11+G11+J11+K11)","v":1088}]
[2,null,null,null,null,null,null,null,null,0,null,0]
[3,null,null,null,null,null,null,null,null,0,null,0]
[4,null,null,null,null,null,null,null,null,0,null,0]
[5,null,null,null,null,null,null,null,null,0,null,0]
[null,null,null,"   ΣΥΝΟΛΑ",null,{"$f":"SUM(F11:F15)","v":1000},{"$f":"SUM(G11:G15)","v":25},{"$f":"SUM(H11:H15)","v":23},{"$f":"SUM(I11:I15)","v":40},63,{"$f":"SUM(K11:K15)","v":0},1088]
[null,null,null,null,null,null,null,null,null,null,null,"Χ 12 ΜΗΝΕΣ ="]
[null,null,null,null,null,null,null,null,null,"ετήσια πρόβλεψη €",null,{"$f":"SUM(L16*12)","v":13056}]
["*   χωρις απουσιες, ασθένειες και περικοπές ",null,null,null,null,null,null,null,null,"μεταφέρεται στο ΕΝΤΥΠΟ Α3-17"]
["** ΣΧΕΣΗ ΕΡΓΑΣΙΑΣ 1= ΟΡΙΣΜΕΝΟΥ 2= ΕΡΓΟΥ 3=ΑΟΡΙΣΤΟΥ ΧΡΟΝΟΥ. "]
[" ΔΕΝ ΠΡΕΠΕΙ ΝΑ ΠΕΡΙΛΗΦΘΟΥΝ ΟΙ ΕΡΓΑΖ.ΑΟΡΙΣΤΟΥ ΧΡΟΝΟΥ ΓΙΑ ΤΟΥΣ ΔΗΜΟΥΣ ΚΑΙ ΤΑ ΝΠΔΔ"]
[]
["Δηλώνω ότι τα παραπάνω κόστη είναι αληθή και αφορούν ΜΟΝΟΝ το πρόγραμμα ΒΟΗΘΕΙΑ ΣΤΟ ΣΠΙΤΙ."]
[]
[]
["ονοματεπώνυμο νόμιμου εκπροσώπου, υπογραφή ΚΑΙ ΣΦΡΑΓΙΔΑ",null,null,null,null,null,null,null,null,null,"ημερομηνία……."]

{"sheet":"ΕΝΤΥΠΟ A3-17 Α ΔΟΣΗ","index":2,"n_rows":31,"n_cols":10,"rows_kept":31,"cut":false,"hidden":false,"merged":[[12,0,12,1],[12,2,12,3],[12,4,12,5],[14,7,14,9],[15,7,15,9],[16,7,16,9],[14,2,14,5],[15,2,15,5],[16,2,16,5],[8,2,8,6],[12,8,12,9],[12,6,12,7],[11,8,11,9],[11,0,11,1],[9,2,9,9],[8,8,8,9],[7,2,7,6],[7,0,7,1],[8,0,8,1],[3,0,3,1],[4,0,4,1],[5,0,5,1],[6,0,6,1],[11,4,11,5],[9,0,9,1],[3,2,3,9],[4,2,4,6],[5,2,5,6],[6,2,6,6],[4,8,4,9],[5,8,5,9],[6,8,6,9],[7,8,7,9],[11,2,11,3],[11,6,11,7]]}
[" ΠΡΟΓΡΑΜΜΑ ΒΟΗΘΕΙΑ ΣΤΟ ΣΠΙΤΙ  2017 / ΕΝΤΥΠΟ A3-17/ Α΄ΔΟΣΗ"]
[null,null,null,null,"ΣΥΝΟΛΙΚΑ ΟΙΚΟΝΟΜΙΚΑ ΣΤΟΙΧΕΙΑ ΦΟΡΕΑ"]
[]
["ΕΠΩΝΥΜ.ΦΟΡΕΑ"]
["ΠΕΡΙΦΕΡΕΙΑ",null,null,null,null,null,null,"ΝΟΜΟΣ"]
["Ε-MAIL ΦΟΡΕΑ",null,null,null,null,null,null,"ΤΗΛΕΦ.ΦΟΡΕΑ"]
["Ε-MAIL ΔΗΜΟΥ",null,null,null,null,null,null,"ΤΗΛΕΦ. ΔΗΜΟΥ"]
["ΑΦΜ ΦΟΡΕΑ",null,null,null,null,null,null,"ΚΙΝΗΤΟ ΤΗΛΕΦ."]
["ΤΡΑΠΕΖΑ",null,null,null,null,null,null,"ΙΒΑΝ","GR__ ____ ____ ____ ____ ____ "]
["ΥΠΕΥΘ.ΕΠΙΚΟΙΝΩΝ."]
[]
[null,null,"ΚΟΣΤΟΣ ΠΡΟΣΩΠΙΚΟΥ*",null,"ΔΙΟΙΚΗΤ.ΚΟΣΤΟΣ**",null,"ΚΟΣΤΟΣ ΧΡΗΣ.ΟΧΗΜΑΤΩΝ***",null,"ΣΥΝΟΛΙΚΟ ΑΙΤΟΥΜΕΝΟ\n ΠΟΣΟ\n ΧΡΗΜΑΤΟΔΟΤΗΣΗΣ (ΣΕ ΕΥΡΩ)."]
["ΣΥΝΟΛΑ",null,0,null,"ΕΩΣ 2,5% ΕΠΙ ΤΟΥ ΚΟΣΤΟΥΣ ΠΡΟΣΩΠΙΚΟΥ",null,"ΕΩΣ 2,5% ΕΠΙ ΤΟΥ ΚΟΣΤΟΥΣ ΠΡΟΣΩΠΙΚΟΥ",null,{"$f":"SUM(C13:H13)","v":0}]
[]
[null,null,"ΟΧΗΜΑ ΝΟ 1:   ΑΡ. ΚΥΚΛ.",null,null,null,null,"ΟΧΗΜΑ ΝΟ 4 ΑΡ.ΚΥΚΛ."]
[null,null,"ΟΧΗΜΑ ΝΟ 2:   ΑΡ. ΚΥΚΛ.",null,null,null,null,"ΟΧΗΜΑ ΝΟ 5 ΑΡ.ΚΥΚΛ."]
[null,null,"ΟΧΗΜΑ ΝΟ 3:   ΑΡ. ΚΥΚΛ.",null,null,null,null,"ΟΧΗΜΑ ΝΟ 6 ΑΡ.ΚΥΚΛ."]
["* ΠΕΡΙΛΑΜΒΑΝΕΙ ΑΚΑΘΑΡΙΣΤΕΣ ΑΠΟΔΟΧΕΣ & ΕΡΓΟΔΟΤΙΚΕΣ ΕΙΣΦΟΡΕΣ ΓΙΑ ΤΟΥΣ ΜΗΝΕΣ ΙΑΝΟΥΑΡΙΟ ΕΩΣ ΚΑΙ ΔΕΚΕΜΒΡΙΟ 2017"]
["** Μέγιστο αναγραφόμενο ποσό έως το 2,5% επί του Κόστους Προσωπικού  ***Μέγιστο αναγραφόμενο ποσό 2.5% επί του Κόστους Προσωπικού"]
[]
["Τα αντίγραφα των τιμολογίων (που αφορούν διοικ.κόστη  και κόστη χρησης οχημάτων) μπορούν να εξοφληθούν έως και τις  16 /12/2017, "]
["καταληκτική ημερομηνία υποβολής τους και σε συγκεντρωτική κατάσταση (ΕΝΤΥΠΟ Α5-17)."]
[]
[]
["Δηλώνω ότι: "]
["\n1.τα οχήματα έχουν συντηρηθεί και λειτουργούν καλώς και αφορούν αποκλειστικά και μόνον το Πρόγραμμα Βοηθεια στο Σπιτι.\n"]
["2. Απασχολώ στον φορέα μου …………………………………………………….(αριθμός και ολογράφως) εργαζόμενους."]
[]
[]
[]
[null,"ονοματεπώνυμο νόμιμου εκπροσώπου, υπογραφή ΚΑΙ ΣΦΡΑΓΙΔΑ",null,null,null,null,null,null,null,"ημερομηνία ……………………"]

{"sheet":"ΕΝΤΥΠΟ Α7-17 Α ΔΟΣΗ ","index":3,"n_rows":33,"n_cols":12,"rows_kept":33,"cut":false,"hidden":false,"merged":[[20,2,20,5],[4,1,4,3],[23,2,23,5],[24,2,24,5],[25,2,25,5],[18,2,18,5],[27,2,27,5],[26,2,26,5],[2,1,2,3],[3,1,3,3],[22,2,22,5],[21,2,21,5],[14,2,14,5],[15,2,15,5],[16,2,16,5],[2,4,2,14],[3,4,3,5],[3,7,3,9],[3,11,3,14],[19,2,19,5],[17,2,17,5],[4,11,4,14]]}
[null,null,"ΕΝΤΥΠΟ Νο Α7-17 /Α΄ΔΟΣΗ",null,null,null,"ΠΡΟΓΡΑΜΜΑ ΒΟΗΘΕΙΑ ΣΤΟ ΣΠΙΤΙ 2017"]
[null,null,null,null,null,null,"Στατιστικά στοιχεία μηνός ΙΑΝΟΥΑΡΙΟΥ 2017",null,null,null,null,"(ΕΝΑ ΕΝΤΥΠΟ ΑΝΑ ΦΟΡΕΑ)"]
[null,"ΕΠΩΝΥΜΙΑ ΦΟΡΕΑ"]
[null,"EMAIL φορεα",null,null,null,null,"ΤΗΛΕΦ.1",null,null,null,"ΚΙΝΗΤΟ"]
[null,"EMAIL ΔΗΜΟΥ",null,null,null,null,"ΤΗΛΕΦ.2",null,null,null,"ΚΙΝΗΤΟ"]
[]
[null,null,"ΗΛΙΚΙΑΚΗ ΑΝΑΛΥΣΗ ΕΞΥΠΗΡΕΤΟΥΜΕΝΩΝ ΑΝΑ ΦΥΛΟ"]
[null,null,null,"ΑΜΕΑ","65-70 ΕΤΩΝ","71-77 ΕΤΩΝ","78+ ΕΤΩΝ","ΣΥΝΟΛΟ"]
[null,null,"ΑΝΔΡΕΣ",null,null,null,null,{"$f":"SUM(D9:G9)","v":0}]
[null,null,"ΓΥΝΑΙΚΕΣ",null,null,null,null,{"$f":"SUM(D10:G10)","v":0}]
[null,null,"ΣΥΝΟΛΑ",{"$f":"SUM(D9:D10)","v":0},{"$f":"SUM(E9:E10)","v":0},{"$f":"SUM(F9:F10)","v":0},{"$f":"SUM(G9:G10)","v":0},{"$f":"SUM(H9:H10)","v":0}]
[]
[null,null,null,null,null,null,"ΕΙΔΟΣ ΥΠΗΡΕΣΙΩΝ & ΣΥΧΝΟΤΗΤΑ ΠΑΡΟΧΗΣ ΤΟΥΣ"]
[null,null,null,null,null,null,"ΑΡΙΘΜΟΣ ΑΤΟΜΩΝ ΠΟΥ ΕΞΥΠΗΡΕΤΟΥΝΤΑΙ "]
[null,null,"ΥΠΗΡΕΣΙΑ",null,null,null,"5 ΦΟΡΕΣ\nΕΒΔΟΜ.","2-4 ΦΟΡΕΣ\nΕΒΔΟΜ.","1 ΦΟΡΑ\nΕΒΔΟΜ.","2 ΦΟΡΕΣ\nΜΗΝΙΑΙΑ","1 ΦΟΡΑ\nΜΗΝΙΑΙΑ","ΣΥΝΟΛΑ \nΑΤΟΜΩΝ/\nΥΠΗΡΕΣΙΑ"]
[null,null,"ΑΤΟΜΙΚΗ ΚΟΙΝΩΝΙΚΗ ΣΤΗΡΙΞΗ",null,null,null,null,null,null,null,null,{"$f":"SUM(G16:K16)","v":0}]
[null,null,"ΚΟΙΝΩΝΙΚΗ ΣΤΗΡΙΞΗ ΟΙΚΟΓΕΝΕΙΑΣ",null,null,null,null,null,null,null,null,{"$f":"SUM(G17:K17)","v":0}]
[null,null,"ΝΟΣΗΛΕΥΤΙΚΗ ΦΡΟΝΤΙΔΑ",null,null,null,null,null,null,null,null,0]
[null,null,"ΥΓΕΙΝΗ ΚΑΙ ΚΑΘΑΡΙΟΤΗΤΑ ΟΙΚΙΑΣ",null,null,null,null,null,null,null,null,0]
[null,null,"ΑΓΟΡΕΣ ΕΙΔΩΝ ΠΡΩΤΗΣ ΑΝΑΓΚΗΣ",null,null,null,null,null,null,null,null,0]
[null,null,"ΦΑΓΗΤΟ ΣΙΤΗΣΗ",null,null,null,null,null,null,null,null,0]
[null,null,"ΥΠΟΒΟΗΘΗΣΗ ΜΕΤΑΚΙΝΗΣΕΩΝ",null,null,null,null,null,null,null,null,0]
[null,null,"ΙΑΤΡΙΚΗ ΦΡΟΝΤΙΔΑ",null,null,null,null,null,null,null,null,0]
[null,null,"ΦΥΣΙΟΘΕΡΑΠΕΥΤΙΚΗ ΦΡΟΝΤΙΔΑ",null,null,null,null,null,null,null,null,0]
[null,null,"ΣΥΝΟΔΕΙΑ/ΔΙΑΜΕΣΟΛΑΒΗΣΗ ΜΕ ΦΟΡΕΙΣ",null,null,null,null,null,null,null,null,0]
[null,null,"ΚΟΙΝΩΝΙΚΗ ΣΥΝΑΝΑΣΤΡΟΦΗ",null,null,null,null,null,null,null,null,0]
[null,null,"ΕΝΗΜΕΡΩΣΗ ΓΙΑ ΠΑΡΟΧΕΣ ΠΟΥ ΔΙΚΑΙΟΥΤΑΙ ",null,null,null,null,null,null,null,null,{"$f":"SUM(G27:K27)","v":0}]
[null,null,"Σύνολα",null,null,null,{"$f":"SUM(G16:G27)","v":0},{"$f":"SUM(H16:H27)","v":0},{"$f":"SUM(I16:I27)","v":0},{"$f":"SUM(J16:J27)","v":0},{"$f":"SUM(K16:K27)","v":0}]
[]
[null,null,"ημερομηνία","………………………………………"]
[]
[null,null,"…………………………………………………………………………………………."]
[null,null,"ονοματεπωνυμο και υπογραφή του νομίμου εκπροσωπου, και σφραγίδα φορέα"]